Cogmind - Beta 16 @@@ ROGUE MODE // 2026.01.26 @ 13:21:03 Player: Zargoosa Result: Destroyed by DAS Turret with DAS Cannon Performance ------------- Evolutions (0) 0 Regions Visited (3) 600 Robots Destroyed (9) 45 Value Destroyed (252) 252 Prototype IDs (0) 0 Alien Tech Used (0) 0 Bonus (0) 0 TOTAL SCORE: 897 Bonus ------- None Cogmind --------- Core Integrity 0/250 Matter 382/500 Energy 250/250 System Corruption 3% Temperature Cool (0) Movement Treading (240) Ox1 Location -10/Exiles Parts ------- > --- POWER (1) -------- Ion Engine > --- PROPULSION (2) --- Light Treads Light Treads > --- UTILITY (2) ------ High-capacity Storage Unit High-capacity Matter Pod > --- WEAPON (2) ------- Light Assault Rifle Grenade Launcher > --- INVENTORY (20) --- Ion Engine Light Ion Engine Aluminum Leg Aluminum Leg Wheel Huge Storage Unit Sensor Array Medium Laser Datajack Mining Laser Peak State ------------ > --- POWER ------------ Ion Engine > --- PROPULSION ------- Light Treads Light Treads > --- UTILITY ---------- Medium Storage Unit Light Armor Plating > --- WEAPON ----------- Assault Rifle Light Assault Rifle > --- INVENTORY -------- Ion Engine Light Ion Engine Aluminum Leg Aluminum Leg Wheel Huge Storage Unit Sensor Array Grenade Launcher Datajack Mining Laser [Rating: 8] Favorites ----------- Power Ion Engine Engine Ion Engine Propulsion Light Treads Treads Light Treads Utility High-capacity Storage Unit Device Sensor Array Storage High-capacity Storage Unit Protection Light Armor Plating Weapon Light Assault Rifle Ballistic Gun Light Assault Rifle Launcher Grenade Launcher Build | -11 -10 -10 -10 ------- Run | Yrd Mat Min Exi Slots Evolved . | . . . . Power . | . . . . Propulsion . | . . . . Utility . | . . . . Weapon . | . . . . Parts Attached 17 | 6 9 1 1 Power 2 | 1 1 . . Engine 2 | 1 1 . . Core . | . . . . Reactor . | . . . . Propulsion 5 | 2 3 . . Treads 5 | 2 3 . . Leg . | . . . . Wheel . | . . . . Hover . | . . . . Flight . | . . . . Utility 6 | 1 4 . 1 Device 1 | . 1 . . Storage 4 | 1 2 . 1 Processor . | . . . . Hackware . | . . . . Protection 1 | . 1 . . Artifact . | . . . . Weapon 4 | 2 1 1 . Energy Gun . | . . . . Energy Cannon . | . . . . Ballistic Gun 3 | 2 1 . . Ballistic Cannon . | . . . . Launcher 1 | . . 1 . Special Weapon . | . . . . Impact Weapon . | . . . . Slashing Weapon . | . . . . Piercing Weapon . | . . . . Special Melee Weapon . | . . . . Unidentified Prototypes . | . . . . Parts Lost 2 | . . 2 . Power . | . . . . Propulsion . | . . . . Utility 1 | . . 1 . Weapon 1 | . . 1 . Highest Loss Streak 2 | . . 2 . To Critical Strikes . | . . . . Average Backups 8 | 1 8 10 10 Power 1 | . 1 2 2 Propulsion 2 | 1 3 3 3 Utility 1 | . 1 2 2 Weapon 1 | . 2 2 2 Tool/Special . | . . . . Unused Backups 8 | . . . 8 Power 1 | . . . 1 Propulsion 3 | . . . 3 Utility 1 | . . . 1 Weapon 2 | . . . 2 Tool/Special 1 | . . . 1 Average Slot Usage (%) 94 | . 96 92 90 Engine 14 | . 14 14 14 Treads 28 | . 28 28 28 Device 3 | . 4 . . Storage 15 | . 14 14 18 Protection 4 | . 6 9 . Ballistic Gun 23 | . 28 21 14 Launcher 4 | . . 4 14 Peak Build Rating 8 | 6 8 8 8 Average Rating 7 | 4 7 7 7 On Entrance 5 | . 6 8 7 Avg Prop Armor Cover (%) . | . . . . Naked Turns . | . . . . Heaviest Build 53 | 13 51 51 53 Greatest Support 40 | 40 40 40 40 Greatest Overweight (x) 1 | . 1 1 1 Average Overweight (x) . | . . 1 1 Largest Inventory Capacity 20 | 8 20 20 20 Average Capacity 14 | 6 13 20 20 Most Carried 11 | 4 11 11 10 Average Carried 8 | 2 8 10 10 Final Capacity 20 | 8 20 20 20 Final Carried 11 | 4 11 10 10 Class Distribution -------------------- 96% | Mutant 3% | Scavenger-Mutant Dominant Class ---------------- Mutant | -10/Materials Mutant | -10/Mines Mutant | -10/Exiles Resources | -11 -10 -10 -10 ----------- Run | Yrd Mat Min Exi Matter Collected 511 | 247 183 . 81 Remotely . | . . . . Salvage Created 331 | . 327 4 . Parts 17 | . 17 . . Haulers Intercepted 1 | . 1 . . Recyclers Shooed 1 | . 1 . . Parts Field Recycled . | . . . . Retrieved Matter . | . . . . Parts Self-Destructed . | . . . . Prevented . | . . . . Parts Restored . | . . . . Kills | -11 -10 -10 -10 ------- Run | Yrd Mat Min Exi Combat Hostiles Destroyed 9 | . 8 1 . Guns 8 | . 8 . . AOE 1 | . . 1 . Classes Destroyed 4 | . 3 1 . Hauler 1 | . 1 . . Swarmer 2 | . 2 . . Grunt 6 | . 6 . . Assembled 1 | . . 1 . Best Kill Streak 3 | . 3 1 . Combat Bots Only 3 | . 3 1 . Max Kills in Single Turn 1 | . 1 1 . Gunslinging . | . . . . Exploded 1 | . . 1 . Melee . | . . . . Uniques/NPCs Destroyed . | . . . . Combat | -11 -10 -10 -10 -------- Run | Yrd Mat Min Exi Hostile Shots Fired 91 | . 60 29 2 Missed 27 | . 16 11 . Hits 64 | . 44 18 2 Melee 8 | . . 8 . Projectile 56 | . 44 10 2 Part Disruptions 1 | . . 1 . Damage Taken 1014 | . 537 364 113 Core 290 | . 81 96 113 Absorbed by Shields . | . . . . Core Remaining (%) 100 | 100 . . . Volleys Fired 35 | . 30 4 1 Largest 2 | . 2 1 1 Hottest 40 | . 40 30 30 Shots Fired 66 | . 60 4 2 Gun 63 | . 60 3 . Cannon . | . . . . Launcher 3 | . . 1 2 Special . | . . . . Kinetic 63 | . 60 3 . Thermal . | . . . . Explosive 3 | . . 1 2 Electromagnetic . | . . . . Robot Hit Streak 10 | . 10 4 . Robot Miss Streak 2 | . 2 1 . Penetration Max . | . . . . Secondary Targets 3 | . 3 . . Max Gunslinging Chain 1 | . 1 . . Shots Hit Robots 46 | . 44 2 . Core Hits 24 | . 21 3 . Critical Kills . | . . . . Critical Parts Destroyed . | . . . . Critical Strikes . | . . . . Melee Attacks . | . . . . Impact . | . . . . Slashing . | . . . . Piercing . | . . . . Sneak Attacks . | . . . . Combat Hostiles . | . . . . Follow-up Attacks . | . . . . Damage Inflicted 550 | . 461 89 . Guns 478 | . 461 17 . Cannons . | . . . . Explosions 72 | . . 72 . Melee . | . . . . Ramming . | . . . . Kinetic 478 | . 461 17 . Thermal . | . . . . Explosive 72 | . . 72 . Electromagnetic . | . . . . Impact . | . . . . Slashing . | . . . . Piercing . | . . . . Highest Corruption 3 | . . 3 3 Average Corruption 3 | . . 3 3 Corruption Purged . | . . . . Corruption Blocked . | . . . . Effects 9 | . . . 9 Message Errors 1 | . . . 1 Matter Fused 2 | . . . 2 Heat Flow Errors 1 | . . . 1 Data Loss (minor) 4 | . . . 4 Misfires 1 | . . . 1 Overload Shots . | . . . . Overflow Damage . | . . . . Projectiles . | . . . . Explosions . | . . . . Melee . | . . . . Knockbacks . | . . . . Impact . | . . . . Kinetic . | . . . . Secondary . | . . . . Self-Inflicted Damage 27 | . . 27 . Shots 1 | . . 1 . Rammed . | . . . . Targets Rammed . | . . . . Kicked . | . . . . Crushed . | . . . . Highest Temperature 278 | . 29 3 278 Average Temperature 47 | . 11 3 143 Received Heat Transfer 281 | . 261 20 . Siege Activations . | . . . . Martial Activations . | . . . . Shielding Activations . | . . . . Robots Disrupted . | . . . . Combat Hostiles . | . . . . Robots Corrupted . | . . . . Combat Hostiles . | . . . . Parts Fried . | . . . . Impact Corruptions . | . . . . Robots Melted . | . . . . Combat Hostiles . | . . . . Parts Melted . | . . . . Heat Transferred . | . . . . Parts Sabotaged . | . . . . Parts Stolen . | . . . . Parts Stripped . | . . . . Power Chain Reactions . | . . . . Alert | -11 -10 -10 -10 ------- Run | Yrd Mat Min Exi Maximum Alert Level . | . . . . Low Security (%) 100 | 100 100 100 . Level 1 . | . . . . Level 2 . | . . . . Level 3 . | . . . . Level 4 . | . . . . Level 5 . | . . . . High Security . | . . . . Max Security . | . . . . Peak Influence 119 | . 119 4 . Initial 1 | . . 1 . Average 24 | . 27 . . Influence Increases 270 | . 266 4 . Destroy 0b10 Robot/C 160 | . 160 . . Destroy 0b10 Robot/NC 5 | . 5 . . Destroy Leader 32 | . 32 . . Successful Hack 24 | . 24 . . Select Force Hacks 30 | . 30 . . Destroy Structure 4 | . . 4 . Lose Combat Pursuer 15 | . 15 . . Influence Decreases 270 | . 260 6 4 Entered New Map 9 | . . 5 4 Time Decay 261 | . 260 1 . Squads Dispatched 1 | . 1 . . Investigation 1 | . 1 . . Extermination . | . . . . Reinforcement . | . . . . Assault . | . . . . Garrison . | . . . . Intercept . | . . . . Searches Triggered . | . . . . Construction Impeded . | . . . . Haulers Reinforced . | . . . . Active Scanning Responses . | . . . . Cargo Convoy Interrupts . | . . . . Stealth | -11 -10 -10 -10 --------- Run | Yrd Mat Min Exi Distress Signals . | . . . . Communications Jammed . | . . . . Distress Signals . | . . . . Times Spotted 25 | . 15 9 1 Peak Tracking Total 11 | . 4 9 11 Tactical Retreats 1 | . 1 . . Traps | -11 -10 -10 -10 ------- Run | Yrd Mat Min Exi Traps Triggered 1 | . 1 . . Indirectly . | . . . . Trap Hack Attempts . | . . . . Triggered . | . . . . Disarmed . | . . . . Reprogrammed . | . . . . Reused . | . . . . Traps Extracted . | . . . . Installed . | . . . . Triggered . | . . . . Machines | -11 -10 -10 -10 ---------- Run | Yrd Mat Min Exi Machines Disabled 1 | . . . 1 Max in Single Turn 1 | . . . 1 Machines Repaired . | . . . . Machines Dismantled . | . . . . Machines Sabotaged . | . . . . Overloaded Fab Kills . | . . . . Hacking | -11 -10 -10 -10 --------- Run | Yrd Mat Min Exi Machines Accessed 6 | . 6 . . Terminals 5 | . 5 . . Fabricators . | . . . . Repair Stations . | . . . . Recycling Units 1 | . 1 . . Scanalyzers . | . . . . Garrison Access . | . . . . Total Hacks 17 | . 17 . . Successful 13 | . 13 . . Failed 4 | . 4 . . Catastrophic . | . . . . Database Lockouts . | . . . . Manual 17 | . 17 . . Terminals 16 | . 16 . . Fabricators . | . . . . Repair Stations . | . . . . Recycling Units 1 | . 1 . . Scanalyzers . | . . . . Garrison Access . | . . . . Terminal Hacks 3 | . 3 . . Alert Level 2 | . 2 . . Locate Traps 1 | . 1 . . Fabricator Hacks . | . . . . Repair Station Hacks . | . . . . Recycling Unit Hacks . | . . . . Scanalyzer . | . . . . Garrison Access Hacks . | . . . . Unauthorized Hacks 10 | . 10 . . Terminals 9 | . 9 . . Track 1 | . 1 . . Botnet 4 | . 4 . . Skim 4 | . 4 . . Fabricators . | . . . . Repair Stations . | . . . . Recycling Units 1 | . 1 . . Tunnel 1 | . 1 . . Scanalyzers . | . . . . Garrison Access . | . . . . Data Cores Recovered . | . . . . Used . | . . . . Hacking Detections 2 | . 2 . . Full Trace Events . | . . . . Feedback Events . | . . . . Feedback Blocked . | . . . . Robot Schematics Acquired . | . . . . Robots Built . | . . . . Authchips . | . . . . Time . | . . . . Total Robot Build Rating . | . . . . Part Schematics Acquired . | . . . . Parts Built . | . . . . Authchips . | . . . . Time . | . . . . Total Part Build Rating . | . . . . Part Studies Acquired . | . . . . Parts Repaired . | . . . . Time . | . . . . Parts Recycled . | . . . . Recycled Matter . | . . . . Retrieved Matter . | . . . . Retrieved Components . | . . . . Parts Scanalyzed . | . . . . Part Schematics Acquired . | . . . . Parts Damaged . | . . . . Bothacking | -11 -10 -10 -10 ------------ Run | Yrd Mat Min Exi Used RIF Installer . | . . . . Robots Hacked . | . . . . Non-combat . | . . . . Combat . | . . . . Robot Hacks Applied . | . . . . Relay Couplers Released . | . . . . Fabnet Peak Effective % . | . . . . Robots Rewired . | . . . . Allies Hacked . | . . . . Hacks Repelled . | . . . . Allies | -11 -10 -10 -10 -------- Run | Yrd Mat Min Exi Total Allies . | . . . . Largest Group . | . . . . Highest-Rated Group . | . . . . Highest-Rated Ally . | . . . . Total Orders . | . . . . Ally Attacks . | . . . . Total Damage . | . . . . Kills . | . . . . Allies Corrupted . | . . . . Allies Melted . | . . . . Intel | -11 -10 -10 -10 ------- Run | Yrd Mat Min Exi Active Infowar (turns) 373 | . 373 . . Sensors 373 | . 373 . . Robot Analysis Total . | . . . . Derelict Logs Recovered . | . . . . Drone Launches . | . . . . Drone Recoveries . | . . . . Exploration | -11 -10 -10 -10 ------------- Run | Yrd Mat Min Exi Turns Passed 1635 | 91 1049 56 439 Spaces Moved 717 | 52 463 20 182 Core 4 | 4 . . . Treads 713 | 48 463 20 182 Legs . | . . . . Wheels . | . . . . Hover . | . . . . Flight . | . . . . Fastest Speed 50 | 50 160 240 240 Average Speed 202 | 151 191 240 240 Slowest Speed 240 | 160 240 240 240 Overloaded Moves . | . . . . Propulsion Burnouts . | . . . . Robots Hopped . | . . . . Potential Cave-ins . | . . . . Cave-ins Triggered . | . . . . Exploration Rate (%) 28 | 4 55 8 47 Regions Visited 3 Branch Regions 2 Pre-discovered Areas 1 | . 1 . . Known Exits Taken . | . . . . Unknown Exits Taken 3 | 1 1 1 . Scrap Searched . | . . . . Spaces Dug . | . . . . Terrain Destroyed 6 | . . 6 . Melee . | . . . . Projectile . | . . . . AOE 6 | . . 6 . Terrain Rammed . | . . . . Walls Destroyed . | . . . . Machines Disabled . | . . . . Actions | -11 -10 -10 -10 --------- Run | Yrd Mat Min Exi Total 845 | 61 574 26 184 Wait 60 | . 58 2 . Move 714 | 51 462 19 182 Hop . | . . . . Pick Up 10 | 4 6 . . Fast Attach 8 | 6 1 . 1 Attach 1 | . . 1 . Detach . | . . . . Swap 10 | . 10 . . Drop 7 | . 7 . . Fire 35 | . 30 4 1 Melee . | . . . . Ram . | . . . . Kick . | . . . . Crush . | . . . . Escape Stasis . | . . . . Rewire . | . . . . Trap . | . . . . Miscellaneous . | . . . . Route ------- -11/Scrapyard -10/Materials (discovered 3 exits: [*Mat] / [*Min x2]) -10/Mines -10/Exiles History --------- Turn | Location | Event 10 | -11/Scrapyard | Discovered new exit (range 16) 92 | -11/Scrapyard | Entered Materials 243 | -10/Materials | Discovered new exit (range 12) 302 | -10/Materials | Build established: Mutant 439 | -10/Materials | Discovered new exit (range 3) 692 | -10/Materials | Derelicts attacked the area 1074 | -10/Materials | Discovered new exit (range 12) 1141 | -10/Materials | Entered Mines 1142 | -10/Mines | Assembled infested the area 1147 | -10/Mines | Assisted by a Guerilla fighting off Assembled 1172 | -10/Mines | Core integrity fell below 50% 1179 | -10/Mines | Deemed a non-threat by the Exiles lab entrance 1181 | -10/Mines | Discovered new exit (range 5) 1197 | -10/Mines | Entered Exiles 1293 | -10/Exiles | Met 8R-AWN 1337 | -10/Exiles | Met EX-HEX 1537 | -10/Exiles | Met EX-DEC 1633 | -10/Exiles | Attacked by the Exiles 1636 | -10/Exiles | Core integrity fell below 20% 1636 | -10/Exiles | Destroyed by DAS Turret with DAS Cannon Last Messages --------------- project in the back. 01449_ System corrupted: Component data lost. 01466_ System corrupted: Heat flow error (+296). 01478_ Extracted 81 matter. 01485_ Acquired Hcp. Matter Pod. 01517_ System corrupted: Matter fused (-7). EX-DEC: Ah I see we have a visitor. One wrong move in here and I'll invert your atomic chain! 01539_ EX-DEC: "Oops, I hope HEX didn't hear that..." 01561_ System corrupted: Component data lost. 01596_ N/6VY%IYJWCA NWXX:P0UA1ORAFLU3 01632_ System corrupted: FCS attempts to trigger Grenade Launcher. 01632_ System corrupted: Grenade Launcher misfires. [Achievement: Maybe Next Time I'll Detach My Launcher] 01632_ Machine disabled. 01633_ EXILES: Hostile robot within lab perimeter. Defensive protocols time, folks! 01635_ EX-DEC deploys DAS Turret. Map ----- +----------------------------------------------------+ | ?????????????????????????????????????????????????? | | ?????????????????????????????????????????????????? | | ?????????????????????????????????????????????????? | | ?????????????????????????????????????????????????? | | ?????????????????????????????????????????????????? | | ?????????????????????????????????????????????????? | | ?????????????????????????????????????????????????? | | ?????????????????????????????????????????????????? | | ?????????????????????????????????????????????????? | | ??????????????????? ""???????????????????????????? | | ??????????????????" ???????????????????????????? | | ??????????????????" ???????????????????????????? | | ??????????????????" ???????????????????????????? | | ????????????????? ""??????????????????????????? | | ????#?????????????" "???????????????????????????? | | ??? #???????????# #??????????"??? ???????????? | | ??? #####????### ###??#####"" ? ???????????? | | ?? """#####X# #"###""""""" #??????????? | | ?? """""" " "" ??????##??# | | ??# "" """ " #####""""" | | ???# " " " """ | | ?????# "" | | ???????# " | | ????????# % | | ?????????# | | ?????????##" @ | | ??????????#"" """""" | | ?????????##" ######??? | | ?????????#"" ""##?????????""" | | ????????##""" """##??????????#""" | | ????????#""" """##???????????#"""" | | ????????#""" ""#???????????##"" | | ????????#"" ########??####"""" | | ????????#""" ## ####""" | | ????????#"" t """" | | ????????##"" | | ?????????#"""" | | ?????????## " | | ??????????#" " "" "" | | ??????????#"""" ""## ##""" " " ""# | | ??????????#"" ""#### ######""" """# | | ??????????#" """"##??# #????###""""## | | ??????????#""" """#??## ####???######? | | ??????????## ""##??#! "!#?????????? | | ???????????#"" """##???#" #?????????? | | ???????????##""" ##????#" "#?????????? | | ????????????##"""" ##?????#!!""!"#?????????? | | ??????????????## #??????########?????????? | | ???????????????##### ##???????????????????????? | | ???????????????????## #????????????????????????? | +----------------------------------------------------+ Best States ------------- Heat Dissipation 25 Energy Generation 10 Energy Capacity 250 Matter Stores 409 Matter Capacity 500 Sight Range 16 Robot Scan Range 14 Terrain Scan Density 10 Armor Coverage 150 Evasion (%) 40 Recoil Reduction 2 Item Schematics ----------------- None Robot Schematics ------------------ None Fabricated ------------ Nothing Repaired ---------- Nothing Studied --------- None Alien Tech Used ----------------- None Achievements -------------- Maybe Next Time I'll Detach My Launcher Challenges ------------ None Game ------ Seed ThrowingSurgeCannon Manual? 0 Play Time 00:19:31 Cumulative 26.1 hours Start 2026.01.26 @ 12:42:12 End 2026.01.26 @ 13:21:03 Sessions 3 Manual Loads 0 Difficulty Rogue Special Mode None Game No. 52 Rogue 52 Adventurer 0 Explorer 0 Win Type - Total 0 Types 0/0/0/0/0/0/0/0/0/0 Lore% 13 Gallery% 23 Achievement% 15 Wizard Run 0 Options --------- Layout 1 ASCII 0 Keyboard 0 Movement Arrows Keybinds 0 Fullscreen 1 Font 16/SmallcapsGlow Map View 55x38 Zoom Use 0% Tactical HUD 1 Map Filters NONE Filters NONE Steam 1 RUN: da38ba32-bfeb-4964-90a3-0bf0e16408e5